Workbook

Sheet Tabelle1
C1: Materialzuschnitt berechnen
C2: Beisp. ( 9 x 1500 mm, 8 x 600 mm, 8 x 220 mm, 30 x 630 mm, 2 x 430 mm, 13 x 390 mm)
C4: Benötigt: | D4: 19 Latten a 2000mm
D6: Länge: | E6: Stück | F6: gLänge: | G6: Standard | H6: Stk | I6: Rest
B7: 9x 2000 | C7: Teillänge: | D7: 1500 | E7: 9 | F7: =D7*E7 -> 13500 | G7: 2000 | H7: 9 | I7: =(G7-D7)*H7 -> 4500 | K7: für 390mm verwenden
B8: 3x 2000 | C8: Teillänge: | D8: 630 | E8: 30 | F8: =D8*E8 -> 18900 | G8: 2000 | H8: 3 | I8: =G8-D8*H8 -> 110 | K8: kein weiteres Reststück
B9: 3x 2000 | C9: Teillänge: | D9: 600 | E9: 8 | F9: 4800 | G9: 2000 | H9: 3 | I9: =G9-D9*H9 -> 200 | K9: kein weiteres Reststück
B10: 1x 2000 | C10: Teillänge: | D10: 220 | E10: 8 | F10: =D10*E10 -> 1760 | G10: 2000 | H10: 1 | I10: =G10-D10*E10 -> 240 | K10: 1x 220mm Reststück
B12: 1x 2000 | C12: Teillänge: | D12: 430 | E12: 1 | F12: 430 | G12: =G7-F12 -> 1570 | K12: 1x 430mm
C13: Teillänge: | D13: 390 | E13: 4 | F13: =D13*E13 -> 1560 | G13: =F13+F12 -> 1990 | I13: =G7-G13 -> 10 | K13: 4x 390mm
B15: 1x 2000 | C15: Teillänge: | D15: 430 | E15: 1 | F15: 430 | G15: =G9-F15 -> 1570 | K15: 1x 430mm
C16: Teillänge: | D16: 390 | E16: 4 | F16: =D16*E16 -> 1560 | G16: =F16+F15 -> 1990 | I16: =G9-G16 -> 10 | K16: 4x 390mm
B18: 1x 2000 | C18: Teillänge: | D18: 390 | E18: 5 | F18: =D18*E18 -> 1950 | I18: =G7-F18 -> 50 | K18: 5x 390mm, kein Rest!
